fUST/lending_fUST_20250411
["ID","MTS","AMOUNT","RATE_DAILY","PERIOD"]
[357676756,1744308654117,-531.9,0.00016712,2]
[357676757,1744308654127,-500.0,0.00016712,2]
[357676758,1744308654136,-1424.48,0.00016712,2]
[357676759,1744308654146,-500.0,0.00016712,2]
[357676760,1744308654155,-500.0,0.00016712,2]
[357676761,1744308654165,-500.0,0.00016712,2]
[357676762,1744308654174,-500.0,0.00016712,2]
[357676763,1744308654183,-14407.5,0.00016712,2]
[357676764,1744308654192,-447.04769805,0.00016712,2]
[357676765,1744308654200,-870.53,0.00016712,2]
[357676766,1744308654210,-500.0,0.00016712,2]
[357676767,1744308654219,-500.0,0.00016712,2]
[357676768,1744308654229,-500.0,0.00016712,2]
[357676769,1744308654238,-1624.65,0.00016712,2]
[357676770,1744308654248,-500.0,0.00016712,2]
[357676771,1744308654257,-8220.87,0.00016712,2]
[357676772,1744308654266,-1025.22668685,0.00016712,2]
[357676773,1744308654283,-13594.59331315,0.00016712,2]
[357676774,1744308654292,-4601.93,0.00016712,2]
[357676775,1744308654302,-1395.26,0.00016712,2]
[357676776,1744308654311,-594.32,0.00016712,2]
[357676777,1744308654320,-1210.36,0.00016712,2]
[357676778,1744308654329,-500.0,0.00016712,2]
[357676779,1744308654339,-2747.77,0.00016712,2]
[357676780,1744308654348,-5493.51,0.00016712,2]
[357676781,1744308654357,-500.0,0.00016712,2]
[357676782,1744308654367,-1425.0,0.00016712,2]
[357676783,1744308654376,-602.65,0.00016712,2]
[357676784,1744308654385,-500.0,0.00016712,2]
[357676785,1744308654394,-500.0,0.00016712,2]
[357676786,1744308654403,-669.74,0.00016712,2]
[357676787,1744308654413,-500.0,0.00016712,2]
[357676788,1744308654423,-719.55,0.00016712,2]
[357676789,1744308654432,-6123.87,0.00016712,2]
[357676790,1744308654441,-719.14,0.00016712,2]
[357676791,1744308654451,-686.1,0.00016712,2]
[357676792,1744308654460,-500.0,0.00016712,2]
[357676793,1744308654470,-474.7109722,0.00016712,2]
[357676794,1744308654480,-500.0,0.00016712,2]
[357676795,1744308654490,-853.7,0.00016712,2]
[357676796,1744308654499,-500.0,0.00016712,2]
[357676797,1744308654508,-5297.59,0.00016712,2]
[357676798,1744308654518,-500.0,0.00016712,2]
[357676799,1744308654527,-3104.83,0.00016712,2]
[357676800,1744308654537,-500.0,0.00016712,2]
[357676801,1744308654546,-760.28,0.00016712,2]
[357676802,1744308654556,-514.90816769,0.00016712,2]
[357676803,1744308654565,-2492.63,0.00016712,2]
[357676804,1744308654575,-500.0,0.00016712,2]
[357676805,1744308654584,-500.0,0.00016712,2]
[357676806,1744308654781,-500.0,0.00016712,2]
[357676807,1744308654794,-500.0,0.00016712,2]
[357676808,1744308654803,-500.0,0.00016712,2]
[357676809,1744308654813,-500.0,0.00016712,2]
[357676810,1744308654823,-150.65926217,0.00016712,2]
[357676811,1744308654833,-1272.15,0.00016712,2]
[357676812,1744308654842,-595.22,0.00016712,2]
[357676813,1744308654852,-500.0,0.00016712,2]
[357676814,1744308654862,-500.0,0.00016712,2]
[357676815,1744308654871,-640.42015243,0.00016712,2]
[357676816,1744308654881,-500.0,0.00016712,2]
[357676817,1744308654891,-579.23,0.00016712,2]
[357676818,1744308654901,-500.0,0.00016712,2]
[357676819,1744308654910,-500.0,0.00016712,2]
[357676820,1744308654920,-500.0,0.00016712,2]
[357676821,1744308654930,-2759.82,0.00016712,2]
[357676822,1744308654940,-500.0,0.00016712,2]
[357676823,1744308654950,-500.0,0.00016712,2]
[357676824,1744308654960,-500.0,0.00016712,2]
[357676825,1744308654971,-500.0,0.00016712,2]
[357676826,1744308654989,-3099.26,0.00016712,2]
[357676827,1744308654999,-606.39,0.00016712,2]
[357676828,1744308655010,-501.68,0.00016712,2]
[357676829,1744308655020,-500.0,0.00016712,2]
[357676830,1744308655031,-664.2,0.00016712,2]
[357676831,1744308655041,-798.58,0.00016712,2]
[357676832,1744308655052,-500.0,0.00016712,2]
[357676833,1744308655063,-1853.17,0.00016712,2]
[357676834,1744308655075,-4063.91,0.00016712,2]
[357676835,1744308655085,-571.44,0.00016712,2]
[357676836,1744308655096,-500.0,0.00016712,2]
[357676837,1744308655106,-500.0,0.00016712,2]
[357676838,1744308655113,-1137.36,0.00016712,2]
[357676839,1744308655121,-1351.72,0.00016712,2]
[357676840,1744308655129,-500.0,0.00016712,2]
[357676841,1744308655139,-500.0,0.00016712,2]
[357676842,1744308655147,-300.0,0.00016712,2]
[357676843,1744308655156,-500.0,0.00016712,2]
[357676844,1744308655166,-500.0,0.00016712,2]
[357676845,1744308655176,-500.0,0.00016712,2]
[357676846,1744308655187,-607.68,0.00016712,2]
[357676847,1744308655196,-14000.4,0.00016712,2]
[357676848,1744308655205,-500.0,0.00016712,2]
[357676849,1744308655215,-5103.21,0.00016712,2]
[357676850,1744308655227,-4408.74,0.00016712,2]
[357676851,1744308655236,-739.0,0.00016712,2]
[357676852,1744308655245,-500.0,0.00016712,2]
[357676853,1744308655255,-1487.33,0.00016712,2]
[357676854,1744308655264,-500.0,0.00016712,2]
[357676855,1744308655273,-500.0,0.00016712,2]
[357676856,1744308655283,-500.0,0.00016712,2]
[357676857,1744308655293,-500.0,0.00016712,2]
[357676858,1744308655302,-1272.39,0.00016712,2]
[357676859,1744308655311,-4816.34,0.00016712,2]
[357676860,1744308655321,-1826.98,0.00016712,2]
[357676861,1744308655330,-8696.48,0.00016712,2]
[357676862,1744308655340,-500.0,0.00016712,2]
[357676863,1744308655350,-7073.33,0.00016712,2]
[357676864,1744308655359,-500.0,0.00016712,2]
[357676865,1744308655369,-521.12537156,0.00016712,2]
[357676866,1744308655379,-500.0,0.00016712,2]
[357676867,1744308655388,-500.0,0.00016712,2]
[357676868,1744308655398,-500.0,0.00016712,2]
[357676869,1744308655408,-500.0,0.00016712,2]
[357676870,1744308655417,-500.0,0.00016712,2]
[357676871,1744308655426,-500.0,0.00016712,2]
[357676872,1744308655436,-500.0,0.00016712,2]
[357676873,1744308655445,-500.0,0.00016712,2]
[357676874,1744308655454,-500.0,0.00016712,2]
[357676875,1744308655465,-500.0,0.00016712,2]
[357676876,1744308655476,-500.0,0.00016712,2]
[357676877,1744308655486,-500.0,0.00016712,2]
[357676878,1744308655495,-500.0,0.00016712,2]
[357676879,1744308655504,-609.93,0.00016712,2]
[357676880,1744308655514,-500.0,0.00016712,2]
[357676881,1744308655524,-712.65,0.00016712,2]
[357676882,1744308655533,-500.0,0.00016712,2]
[357676883,1744308655543,-4914.16,0.00016712,2]
[357676884,1744308655553,-500.0,0.00016712,2]
[357676885,1744308655562,-2368.57,0.00016712,2]
[357676886,1744308655571,-500.0,0.00016712,2]
[357676887,1744308655581,-854.96,0.00016712,2]
[357676888,1744308655591,-5494.77,0.00016712,2]
[357676889,1744308655600,-500.0,0.00016712,2]
[357676890,1744308655609,-500.0,0.00016712,2]
[357676891,1744308655619,-500.0,0.00016712,2]
[357676892,1744308655628,-996.94,0.00016712,2]
[357676893,1744308655638,-593.14,0.00016712,2]
[357676894,1744308655648,-500.0,0.00016712,2]
[357676895,1744308655657,-334.18294784,0.00016712,2]
[357676896,1744308655667,-1239.11,0.00016712,2]
[357676897,1744308655676,-500.0,0.00016712,2]
[357676898,1744308655687,-986.81,0.00016712,2]
[357676899,1744308655696,-1276.8,0.00016712,2]
[357676900,1744308655706,-6104.82,0.00016712,2]
[357676901,1744308655716,-500.0,0.00016712,2]
[357676902,1744308655728,-500.0,0.00016712,2]
[357676903,1744308655738,-616.29,0.00016712,2]
[357676904,1744308655748,-1000.23,0.00016712,2]
[357676905,1744308655758,-160.04796625,0.00016773,2]
[357676906,1744308655768,-500.0,0.00016773,2]
[357676907,1744308655777,-500.0,0.00016773,2]
[357676908,1744308655787,-260.58135086,0.00016773,2]
[357676909,1744308655797,-500.0,0.00016773,2]
[357676910,1744308655806,-501.8502434,0.00016773,2]
[357676911,1744308655816,-28150.7494933,0.000168,2]
[357676912,1744308655825,-2200.0,0.00016808,2]
[357676913,1744308655835,-518.28588,0.00016883,2]
[357676914,1744308655844,-500.0,0.00016973,2]
[357676915,1744308655853,-500.0,0.00016973,2]
[357676916,1744308655863,-445.140625,0.00016985,2]
[357676917,1744308655872,-500.0,0.00016985,2]
[357676918,1744308655882,-459.88623047,0.00016985,2]
[357676919,1744308655891,-3699.75,0.00016986,2]
[357676920,1744308655902,-507.94,0.00016986,2]
[357676921,1744308655911,-500.0,0.00016986,2]
[357676922,1744308655921,-317.99384149,0.00016986,2]
[357676923,1744308655930,-500.0,0.00016986,2]
[357676924,1744308655940,-500.0,0.00016986,2]
[357676925,1744308655950,-500.0,0.00016986,2]
[357676926,1744308655959,-500.0,0.00016986,2]
[357676927,1744308655969,-500.0,0.00016986,2]
[357676928,1744308655980,-500.0,0.00016986,2]
[357676929,1744308655993,-341.97299087,0.00016986,2]
[357676930,1744308656003,-500.0,0.00016986,2]
[357676931,1744308656013,-500.0,0.00016986,2]
[357676932,1744308656023,-314.72921215,0.00016986,2]
[357676933,1744308656032,-500.0,0.00016986,2]
[357676934,1744308656043,-500.0,0.00016986,2]
[357676935,1744308656052,-787.59,0.00016986,2]
[357676936,1744308656062,-500.0,0.00016986,2]
[357676937,1744308656074,-500.0,0.00016986,2]
[357676938,1744308656084,-420.1551507,0.00016986,2]
[357676939,1744308656094,-500.0,0.00016986,2]
[357676940,1744308656103,-500.0,0.00016986,2]
[357676941,1744308656113,-500.0,0.00016986,2]
[357676942,1744308656123,-735.34,0.00016986,2]
[357676943,1744308656132,-651.68,0.00016986,2]
[357676944,1744308656141,-500.0,0.00016986,2]
[357676945,1744308656151,-500.0,0.00016986,2]
[357676946,1744308656162,-552.87098564,0.00016986,2]
[357676947,1744308656171,-500.0,0.00016986,2]
[357676948,1744308656181,-500.0,0.00016986,2]
[357676949,1744308656191,-1142.8,0.00016986,2]
[357676950,1744308656200,-500.0,0.00016986,2]
[357676951,1744308656210,-500.0,0.00016986,2]
[357676952,1744308656219,-500.0,0.00016986,2]
[357676953,1744308656230,-500.0,0.00016986,2]
[357676954,1744308656240,-500.0,0.00016986,2]
[357676955,1744308656249,-1021.19,0.00016986,2]
[357676956,1744308656259,-1530.54,0.00016986,2]
[357676957,1744308656269,-567.8869987,0.00016986,2]
[357676958,1744308656278,-500.0,0.00016986,2]
[357676959,1744308656288,-500.0,0.00016986,2]
[357676960,1744308656298,-500.0,0.00016986,2]
[357676961,1744308656307,-500.0,0.00016986,2]
[357676962,1744308656317,-500.0,0.00016986,2]
[357676963,1744308656326,-456.84723153,0.00016986,2]
[357676964,1744308656336,-1139.91,0.00016986,2]
[357676965,1744308656346,-500.0,0.00016986,2]
[357676966,1744308656356,-500.0,0.00016986,2]
[357676967,1744308656366,-500.0,0.00016986,2]
[357676968,1744308656376,-500.0,0.00016986,2]
[357676969,1744308656385,-500.0,0.00016986,2]
[357676970,1744308656395,-202.7843588,0.00016986,2]
[357676971,1744308656404,-500.0,0.00016986,2]
[357676972,1744308656414,-500.0,0.00016986,2]
[357676973,1744308656423,-500.0,0.00016986,2]
[357676974,1744308656433,-500.0,0.00016986,2]
[357676975,1744308656442,-279.35864736,0.00016986,2]
[357676976,1744308656452,-500.0,0.00016986,2]
[357676977,1744308656461,-541.76,0.00016986,2]
[357676978,1744308656471,-500.0,0.00016986,2]
[357676979,1744308656482,-500.0,0.00016986,2]
[357676980,1744308656491,-942.66,0.00016986,2]
[357676981,1744308656501,-500.0,0.00016986,2]
[357676982,1744308656510,-476.37798127,0.00016986,2]
[357676983,1744308656519,-500.0,0.00016986,2]
[357676984,1744308656529,-500.0,0.00016986,2]
[357676985,1744308656538,-275.26845277,0.00016986,2]
[357676986,1744308656548,-1289.32,0.00016986,2]
[357676987,1744308656557,-500.0,0.00016986,2]
[357676988,1744308656566,-500.0,0.00016986,2]
[357676989,1744308656576,-500.0,0.00016986,2]
[357676990,1744308656585,-500.0,0.00016986,2]
[357676991,1744308656595,-500.0,0.00016986,2]
[357676992,1744308656604,-559.91,0.00016986,2]
[357676993,1744308656614,-584.3,0.00016986,2]
[357676994,1744308656623,-686.47,0.00016986,2]
[357676995,1744308656633,-500.0,0.00016986,2]
[357676996,1744308656642,-764.79,0.00016986,2]
[357676997,1744308656652,-500.0,0.00016986,2]
[357676998,1744308656661,-500.0,0.00016986,2]
[357676999,1744308656671,-500.0,0.00016986,2]
[357677000,1744308656680,-1630.62,0.00016986,2]
[357677001,1744308656690,-500.0,0.00016986,2]
[357677002,1744308656699,-1230.63,0.00016986,2]
[357677003,1744308656708,-623.16,0.00016986,2]
[357677004,1744308656718,-500.0,0.00016986,2]
[357677005,1744308656728,-500.0,0.00016986,2]
[357677006,1744308656738,-714.0,0.00016986,2]
[357677007,1744308656749,-504.44,0.00016986,2]
[357677008,1744308656758,-2337.16,0.00016986,2]
[357677009,1744308656768,-1836.68,0.00016986,2]
[357677010,1744308656928,-621.33,0.00016986,2]
[357677011,1744308656938,-220.03513228,0.00016986,2]
[357677012,1744308656948,-227.82808404,0.00016986,2]
[357677013,1744308657600,-6319.99162737,0.00015051,2]
[357677014,1744308657634,-1193.03035318,0.00015051,2]
[357677015,1744308657646,-1095.46,0.00015051,2]
[357677016,1744308658331,-41391.51801945,0.00015051,2]
[357677017,1744308658342,-13952.86396242,0.000169,2]
[357677018,1744308658352,-419.60191596,0.00016986,2]
[357677019,1744308658362,-500.0,0.00016986,2]
[357677020,1744308658371,-500.0,0.00016986,2]
[357677021,1744308658381,-562.43,0.00016986,2]
[357677022,1744308658391,-1114.28,0.00016986,2]
[357677023,1744308658400,-527.15,0.00016986,2]
[357677024,1744308658410,-500.0,0.00016986,2]
[357677025,1744308658420,-738.55,0.00016986,2]
[357677026,1744308658430,-744.91,0.00016986,2]
[357677027,1744308658439,-500.0,0.00016986,2]
[357677028,1744308658449,-991.01,0.00016986,2]
[357677029,1744308658459,-500.0,0.00016986,2]
[357677030,1744308658469,-930.54,0.00016986,2]
[357677031,1744308658479,-878.33,0.00016986,2]
[357677032,1744308658490,-1972.93,0.00016986,2]
[357677033,1744308658500,-500.0,0.00016986,2]
[357677034,1744308658510,-513.05,0.00016986,2]
[357677035,1744308658525,-500.0,0.00016986,2]
[357677036,1744308658535,-500.0,0.00016986,2]
[357677037,1744308658545,-1857.72,0.00016986,2]
[357677038,1744308658555,-500.0,0.00016986,2]
[357677039,1744308658565,-500.0,0.00016986,2]
[357677040,1744308658574,-1454.25,0.00016986,2]
[357677041,1744308658584,-1137.97,0.00016986,2]
[357677042,1744308658594,-257.99,0.00016986,2]
[357677043,1744308658604,-500.0,0.00016986,2]
[357677044,1744308658613,-528.26,0.00016986,2]
[357677045,1744308658623,-500.0,0.00016986,2]
[357677046,1744308658633,-500.0,0.00016986,2]
[357677047,1744308658643,-500.0,0.00016986,2]
[357677048,1744308658653,-500.0,0.00016986,2]
[357677049,1744308658662,-562.49,0.00016986,2]
[357677050,1744308658672,-667.3,0.00016986,2]
[357677051,1744308658681,-500.0,0.00016986,2]
[357677052,1744308658691,-500.0,0.00016986,2]
[357677053,1744308658701,-500.0,0.00016986,2]
[357677054,1744308658710,-500.0,0.00016986,2]
[357677055,1744308658720,-777.43,0.00016986,2]
[357677056,1744308658730,-3480.53,0.00016986,2]
[357677057,1744308658740,-1177.22,0.00016986,2]
[357677058,1744308658749,-3131.24,0.00016986,2]
[357677059,1744308658759,-500.0,0.00016986,2]
[357677060,1744308658769,-500.0,0.00016986,2]
[357677061,1744308658779,-800.53,0.00016986,2]
[357677062,1744308658788,-500.0,0.00016986,2]
[357677063,1744308658798,-514.76,0.00016986,2]
[357677064,1744308658970,-500.0,0.00016986,2]
[357677065,1744308658982,-3474.89,0.00016986,2]
[357677066,1744308658993,-1414.1,0.00016986,2]
[357677067,1744308659004,-500.0,0.00016986,2]
[357677068,1744308659013,-500.0,0.00016986,2]
[357677069,1744308659023,-585.19,0.00016986,2]
[357677070,1744308659032,-500.0,0.00016986,2]
[357677071,1744308659043,-6486.84,0.00016986,2]
[357677072,1744308659052,-1008.02,0.00016986,2]
[357677073,1744308659062,-743.63,0.00016986,2]
[357677074,1744308659074,-642.81,0.00016986,2]
[357677075,1744308659086,-775.89,0.00016986,2]
[357677076,1744308659096,-887.63,0.00016986,2]
[357677077,1744308659105,-500.0,0.00016986,2]
[357677078,1744308659114,-500.0,0.00016986,2]
[357677079,1744308659123,-500.0,0.00016986,2]
[357677080,1744308659132,-448.81,0.00016986,2]
[357677081,1744308659142,-1298.71,0.00016986,2]
[357677082,1744308659151,-500.0,0.00016986,2]
[357677083,1744308659160,-806.3,0.00016986,2]
[357677084,1744308659170,-505.1117336,0.00016986,2]
[357677085,1744308659179,-500.0,0.00016986,2]
[357677086,1744308659189,-1217.57,0.00016986,2]
[357677087,1744308659198,-500.0,0.00016986,2]
[357677088,1744308659207,-500.0,0.00016986,2]
[357677089,1744308659217,-500.0,0.00016986,2]
[357677090,1744308659226,-500.0,0.00016986,2]
[357677091,1744308659236,-500.0,0.00016986,2]
[357677092,1744308659245,-500.0,0.00016986,2]
[357677093,1744308659255,-500.0,0.00016986,2]
[357677094,1744308659265,-1000.0,0.00016986,2]
[357677095,1744308659274,-500.0,0.00016986,2]
[357677096,1744308659283,-500.0,0.00016986,2]
[357677097,1744308659293,-235.24089028,0.00016986,2]
[357677098,1744308659302,-500.0,0.00016986,2]
[357677099,1744308659312,-500.0,0.00016986,2]
[357677100,1744308659321,-500.0,0.00016986,2]
[357677101,1744308659331,-500.0,0.00016986,2]
[357677102,1744308659340,-500.0,0.00016986,2]
[357677103,1744308659349,-500.0,0.00016986,2]
[357677104,1744308659359,-732.44,0.00016986,2]
[357677105,1744308659368,-2354.72,0.00016986,2]
[357677106,1744308659381,-502.31,0.00016986,2]
[357677107,1744308659390,-616.04,0.00016986,2]
[357677108,1744308659400,-500.0,0.00016986,2]
[357677109,1744308659410,-500.0,0.00016986,2]
[357677110,1744308659419,-500.0,0.00016986,2]
[357677111,1744308659428,-609.5,0.00016986,2]
[357677112,1744308659439,-500.0,0.00016986,2]
[357677113,1744308659449,-500.0,0.00016986,2]
[357677114,1744308659458,-573.32,0.00016986,2]
[357677115,1744308659468,-2690.58,0.00016986,2]
[357677116,1744308659478,-573.79332546,0.00016986,2]
[357677117,1744308659487,-500.0,0.00016986,2]
[357677118,1744308659497,-500.0,0.00016986,2]
[357677119,1744308659506,-448.49557789,0.00016986,2]
[357677120,1744308659515,-500.0,0.00016986,2]
[357677121,1744308659524,-500.0,0.00016986,2]
[357677122,1744308659533,-500.0,0.00016986,2]
[357677123,1744308659542,-500.0,0.00016986,2]
[357677124,1744308659552,-1152.17,0.00016986,2]
[357677125,1744308659561,-500.0,0.00016986,2]
[357677126,1744308659571,-500.0,0.00016986,2]
[357677127,1744308659580,-500.0,0.00016986,2]
[357677128,1744308659589,-500.0,0.00016986,2]
[357677129,1744308659598,-500.0,0.00016986,2]
[357677130,1744308659607,-500.0,0.00016986,2]
[357677131,1744308659617,-500.0,0.00016986,2]
[357677132,1744308659626,-825.61,0.00016986,2]
[357677133,1744308659635,-1102.5,0.00016986,2]
[357677134,1744308659644,-500.0,0.00016986,2]
[357677135,1744308659653,-500.0,0.00016986,2]
[357677136,1744308659663,-692.23,0.00016986,2]
[357677137,1744308659672,-500.0,0.00016986,2]
[357677138,1744308659682,-500.0,0.00016986,2]
[357677139,1744308659692,-500.0,0.00016986,2]
[357677140,1744308659702,-500.0,0.00016986,2]
[357677141,1744308659712,-500.0,0.00016986,2]
[357677142,1744308659721,-500.0,0.00016986,2]
[357677143,1744308659736,-500.0,0.00016986,2]
[357677144,1744308659746,-500.0,0.00016986,2]
[357677145,1744308659757,-500.0,0.00016986,2]
[357677146,1744308659767,-1297.45,0.00016986,2]
[357677147,1744308659778,-500.0,0.00016986,2]
[357677148,1744308659791,-500.0,0.00016986,2]
[357677149,1744308659805,-500.0,0.00016986,2]
[357677150,1744308659818,-1276.09,0.00016986,2]
[357677151,1744308659830,-500.0,0.00016986,2]
[357677152,1744308659841,-500.0,0.00016986,2]
[357677153,1744308659852,-639.49,0.00016986,2]
[357677154,1744308659863,-500.0,0.00016986,2]
[357677155,1744308659874,-747.46,0.00016986,2]
[357677156,1744308659886,-546.63,0.00016986,2]
[357677157,1744308659898,-500.0,0.00016986,2]
[357677158,1744308659908,-500.0,0.00016986,2]
[357677159,1744308659919,-1102.16,0.00016986,2]
[357677160,1744308659929,-540.03,0.00016986,2]
[357677161,1744308659939,-436.65561365,0.00016986,2]
[357677162,1744308659949,-1241.53,0.00016986,2]
[357677163,1744308659959,-1719.55,0.00016986,2]
[357677164,1744308659969,-500.0,0.00016986,2]
[357677165,1744308659981,-500.0,0.00016986,2]
[357677166,1744308659993,-852.09,0.00016986,2]
[357677167,1744308660005,-918.22,0.00016986,2]
[357677168,1744308660016,-630.8,0.00016986,2]
[357677169,1744308660026,-500.0,0.00016986,2]
[357677170,1744308660037,-500.0,0.00016986,2]
[357677171,1744308660048,-728.04,0.00016986,2]
[357677172,1744308660064,-1246.5,0.00016986,2]
[357677173,1744308660077,-500.0,0.00016986,2]
[357677174,1744308660088,-500.0,0.00016986,2]
[357677175,1744308660098,-500.0,0.00016986,2]
[357677176,1744308660109,-500.0,0.00016986,2]
[357677177,1744308660119,-500.0,0.00016986,2]
[357677178,1744308660129,-500.0,0.00016986,2]
[357677179,1744308660140,-887.27,0.00016986,2]
[357677180,1744308660149,-1301.77,0.00016986,2]
[357677181,1744308660159,-500.0,0.00016986,2]
[357677182,1744308660171,-1002.55,0.00016986,2]
[357677183,1744308660181,-2038.69,0.00016986,2]
[357677184,1744308660191,-500.0,0.00016986,2]
[357677185,1744308660201,-500.0,0.00016986,2]
[357677186,1744308660212,-657.69,0.00016986,2]
[357677187,1744308660222,-1293.5,0.00016986,2]
[357677188,1744308660236,-3770.16,0.00016986,2]
[357677189,1744308660246,-561.95,0.00016986,2]
[357677190,1744308660257,-2453.43,0.00016986,2]
[357677191,1744308660267,-500.0,0.00016986,2]
[357677192,1744308660277,-500.0,0.00016986,2]
[357677193,1744308660287,-500.0,0.00016986,2]
[357677194,1744308660298,-3679.27,0.00016986,2]
[357677195,1744308660308,-781.8,0.00016986,2]
[357677196,1744308660318,-908.87,0.00016986,2]
[357677197,1744308660328,-500.0,0.00016986,2]
[357677198,1744308660338,-500.0,0.00016986,2]
[357677199,1744308660348,-2526.87,0.00016986,2]
[357677200,1744308660358,-616.63,0.00016986,2]
[357677201,1744308660368,-989.54,0.00016986,2]
[357677202,1744308660379,-500.0,0.00016986,2]
[357677203,1744308660389,-3776.81,0.00016986,2]
[357677204,1744308660399,-1442.23,0.00016986,2]
[357677205,1744308660410,-6890.94,0.00016986,2]
[357677206,1744308660420,-500.0,0.00016986,2]
[357677207,1744308660430,-500.0,0.00016986,2]
[357677208,1744308660440,-500.0,0.00016986,2]
[357677209,1744308660451,-936.33,0.00016986,2]
[357677210,1744308660462,-500.0,0.00016986,2]
[357677211,1744308660472,-989.96,0.00016986,2]
[357677212,1744308660484,-4539.48,0.00016986,2]
[357677213,1744308660494,-1235.93,0.00016986,2]
[357677214,1744308660503,-1662.2,0.00016986,2]
[357677215,1744308660513,-500.0,0.00016986,2]
[357677216,1744308660523,-696.44,0.00016986,2]
[357677217,1744308660532,-2768.86,0.00016986,2]
[357677218,1744308660542,-500.0,0.00016986,2]
[357677219,1744308660551,-500.0,0.00016986,2]
[357677220,1744308660561,-500.0,0.00016986,2]
[357677221,1744308660571,-3518.02,0.00016986,2]
[357677222,1744308660581,-500.0,0.00016986,2]
[357677223,1744308660591,-500.0,0.00016986,2]
[357677224,1744308660601,-500.0,0.00016986,2]
[357677225,1744308660611,-500.0,0.00016986,2]
[357677226,1744308660621,-1152.51,0.00016986,2]
[357677227,1744308660631,-692.21,0.00016986,2]
[357677228,1744308660642,-500.0,0.00016986,2]
[357677229,1744308660652,-1510.33,0.00016986,2]
[357677230,1744308660665,-1067.65,0.00016986,2]
[357677231,1744308660688,-500.0,0.00016986,2]
[357677232,1744308660708,-3186.35,0.00016986,2]
[357677233,1744308660721,-529.80382387,0.00016986,2]
[357677234,1744308660732,-827.07,0.00016986,2]
[357677235,1744308660743,-862.12,0.00016986,2]
[357677236,1744308660753,-500.0,0.00016986,2]
[357677237,1744308660764,-2279.3,0.00016986,2]
[357677238,1744308660774,-500.0,0.00016986,2]
[357677239,1744308660784,-500.0,0.00016986,2]
[357677240,1744308660794,-500.0,0.00016986,2]
[357677241,1744308660805,-1677.55,0.00016986,2]
[357677242,1744308660815,-20782.81,0.00016986,2]
[357677243,1744308660825,-500.0,0.00016986,2]
[357677244,1744308660835,-533.91257396,0.00016986,2]
[357677245,1744308660975,-1748.84,0.00016986,2]
[357677246,1744308660991,-500.0,0.00016986,2]
[357677247,1744308661005,-500.0,0.00016986,2]
[357677248,1744308661016,-759.38,0.00016986,2]
[357677249,1744308661027,-500.0,0.00016986,2]
[357677250,1744308661037,-500.0,0.00016986,2]
[357677251,1744308661048,-3486.64,0.00016986,2]
[357677252,1744308661059,-500.0,0.00016986,2]
[357677253,1744308661068,-500.0,0.00016986,2]
[357677254,1744308661080,-500.0,0.00016986,2]
[357677255,1744308661090,-500.0,0.00016986,2]